[Event "LTU-ch Women 2020"]
[Site "Vilnius"]
[Date "2020.11.22"]
[Round "3.5"]
[White "Sukyte, Kotryna"]
[Black "Maciulaityte, Barbora"]
[Result "0-1"]
[ECO "B24"]
[WhiteElo "1405"]
[BlackElo "1696"]
[Annotator "NA RC"]
[PlyCount "76"]
[EventDate "2020.11.20"]
[EventType "swiss"]
[EventCountry "LTU"]
[SourceTitle "playchess.com"]
[Source "ChessBase"]
[SourceQuality "1"]
[TimeControl "40/5400+30:1800+30"]

1. e4 {[%emt 0:00:00]} c5 {[%emt 0:00:00]} 2. Nc3 {[%emt 0:00:00]} Nc6 {[%emt 0:00:00]} 3. g3 {[%emt 0:00:00]} g6 {[%emt 0:00:01]} 4. Bg2 {[%emt 0:00:03]} Bg7 {[%emt 0:00:17]} 5. d3 {[%emt 0:00:16]} e6 {[%emt 0:00:13]} 6. Be3 {[%emt 0:00:47]} d6 {[%emt 0:02:19]} 7. Nge2 {[%emt 0:00:30]} Nge7 {[%emt 0:00:46]} 8. Qd2 {[%emt 0:01:04]} Nd4 {[%emt 0:02:43]} 9. Nd1 {[%emt 0:01:40]} Nxe2 {[%emt 0:08:03]} 10. Qxe2 {[%emt 0:00:10]} O-O {[%emt 0:00:10]} 11. O-O {[%emt 0:00:08]} Rb8 {[%emt 0:09:50]} 12. f4 {[%emt 0:04:05]} b5 {[%emt 0:00:39]} 13. g4 {[%emt 0:01:57]} f5 {[%emt 0:07:29]} 14. gxf5 {[%emt 0:21:31]} exf5 {[%emt 0:00:11]} 15. e5 {[%emt 0:12:41]} Be6 {[%emt 0:07:49]} 16. d4 {[%emt 0:08:21]} Bc4 {[%emt 0:03:24]} 17. Qf2 {[%emt 0:00:18]} Bxf1 {[%emt 0:00:25]} 18. Qxf1 {[%emt 0:00:20]} cxd4 {[%emt 0:00:30]} 19. Bxd4 {[%emt 0:00:13]} dxe5 {[%emt 0:00:17]} 20. Bxa7 {[%emt 0:00:43]} Rc8 {[%emt 0:00:58]} 21. Qxb5 {[%emt 0:05:35]} e4 {[%emt 0:02:09]} 22. c3 {[%emt 0:08:16]} Nd5 {[%emt 0:05:01]} 23. Qf1 {[%emt 0:09:27]} Qc7 {[%emt 0:02:57]} 24. Qf2 {[%emt 0:06:42]} Nxf4 {[%emt 0:02:38]} 25. Bf1 {[%emt 0:02:48]} Nd5 {[%emt 0:04:47]} 26. Bd4 {[%emt 0:06:00]} f4 {[%emt 0:03:22]} 27. Bxg7 {[%emt 0:01:45]} Qxg7 {[%emt 0:00:22]} 28. c4 {[%emt 0:01:14]} e3 {[%emt 0:01:00]} 29. Qf3 {[%emt 0:01:20]} Ne7 {[%emt 0:02:38]} 30. Rb1 {[%emt 0:03:12]} Qd4 {[%emt 0:02:30]} 31. Nc3 {[%emt 0:01:57]} e2+ {[%emt 0:00:38]} 32. Qf2 {[%emt 0:00:25]} exf1=Q+ {[%emt 0:00:15]} 33. Kxf1 {[%emt 0:00:11]} Qxc4+ {[%emt 0:00:15]} 34. Kg1 {[%emt 0:00:43]} Nd5 {[%emt 0:02:04]} 35. Nxd5 {[%emt 0:00:35]} Qxd5 {[%emt 0:00:06]} 36. a4 {[%emt 0:00:49]} Qd3 {[%emt 0:00:40]} 37. Re1 {[%emt 0:01:18]} Rc2 {[%emt 0:00:21]} 38. Qb6 {[%emt 0:00:32]} Qd5 {[%emt 0:01:19]} 0-1

[Event "LTU-ch Women 2020"]
[Site "Vilnius"]
[Date "2020.11.22"]
[Round "4.1"]
[White "Perminaite, Guoda"]
[Black "Baginskaite, Kamile"]
[Result "0-1"]
[ECO "B92"]
[WhiteElo "1757"]
[BlackElo "2141"]
[Annotator "NA"]
[PlyCount "70"]
[EventDate "2020.11.20"]
[EventType "swiss"]
[EventCountry "LTU"]
[SourceTitle "playchess.com"]
[Source "ChessBase"]
[SourceQuality "1"]
[TimeControl "40/5400+30:1800+30"]

1. e4 {[%emt 0:00:00]} c5 {[%emt 0:00:00]} 2. Nf3 {[%emt 0:00:00]} d6 {[%emt 0:00:00]} 3. d4 {[%emt 0:00:00]} cxd4 {[%emt 0:00:00]} 4. Nxd4 {[%emt 0:00:00]} Nf6 {[%emt 0:00:00]} 5. Nc3 {[%emt 0:00:09]} a6 {[%emt 0:00:00]} 6. Be2 {[%emt 0:00:46]} e5 {[%emt 0:02:07]} 7. Nb3 {[%emt 0:00:27]} Be7 {[%emt 0:00:17]} 8. O-O {[%emt 0:02:35]} O-O {[%emt 0:00:19]} 9. Be3 {[%emt 0:00:11]} Be6 {[%emt 0:01:37]} 10. Qd2 {[%emt 0:03:47]} b5 {[%emt 0:01:20]} 11. Bf3 {[%emt 0:17:30]} Nbd7 {[%emt 0:03:36]} 12. Rfd1 {[%emt 0:26:21]} Qc7 {[%emt 0:14:41]} 13. Bg5 {[%emt 0:10:02]} b4 {[%emt 0:04:05]} 14. Ne2 {[%emt 0:10:53]} a5 {[%emt 0:02:04]} 15. c3 {[%emt 0:00:41]} Qb7 {[%emt 0:13:26]} 16. Nbc1 {[%emt 0:03:15]} h6 {[%emt 0:02:31]} 17. Bxf6 {[%emt 0:01:28]} Nxf6 {[%emt 0:01:31]} 18. cxb4 {[%emt 0:05:01]} axb4 {[%emt 0:00:44]} 19. Nd3 {[%emt 0:01:15]} Rfb8 {[%emt 0:10:20]} 20. b3 {[%emt 0:06:50]} Nxe4 {[%emt 0:08:44]} 21. Qe3 {[%emt 0:00:11]} d5 {[%emt 0:01:28]} 22. Bxe4 {[%emt 0:04:38]} dxe4 {[%emt 0:00:38]} 23. Nc5 {[%emt 0:00:51]} Bxc5 {[%emt 0:02:32]} 24. Qxc5 {[%emt 0:00:09]} f6 {[%emt 0:00:22]} 25. Ng3 {[%emt 0:01:22]} Rc8 {[%emt 0:01:13]} 26. Qe3 {[%emt 0:00:59]} f5 {[%emt 0:01:40]} 27. Qd2 {[%emt 0:01:04]} Qb6 {[%emt 0:02:08]} 28. Qb2 {[%emt 0:00:32]} Rc3 {[%emt 0:01:16]} 29. Ne2 {[%emt 0:00:14]} Rc5 {[%emt 0:01:23]} 30. Rac1 {[%emt 0:02:12]} Rca5 {[%emt 0:02:16]} 31. Ra1 {[%emt 0:00:39]} e3 {[%emt 0:01:09]} 32. f3 {[%emt 0:00:46]} f4 {[%emt 0:00:52]} 33. Rd3 {[%emt 0:00:41]} Qa6 {[%emt 0:01:16]} 34. Nc1 {[%emt 0:00:24]} Bf5 {[%emt 0:00:55]} 35. Rd1 {[%emt 0:00:23]} Rc8 {[%emt 0:00:23]} 0-1

[Event "LTU-ch Women 2020"]
[Site "Vilnius"]
[Date "2020.11.22"]
[Round "4.2"]
[White "Maciulaityte, Barbora"]
[Black "Sibajeva, Marija"]
[Result "0-1"]
[ECO "B40"]
[WhiteElo "1696"]
[BlackElo "1910"]
[Annotator "NA"]
[PlyCount "110"]
[EventDate "2020.11.20"]
[EventType "swiss"]
[EventCountry "LTU"]
[SourceTitle "playchess.com"]
[Source "ChessBase"]
[SourceQuality "1"]
[TimeControl "40/5400+30:1800+30"]

1. e4 {[%emt 0:00:00]} c5 {[%emt 0:00:00]} 2. Nf3 {[%emt 0:00:00]} e6 {[%emt 0:00:00]} 3. c3 {[%emt 0:00:00]} d5 {[%emt 0:00:00]} 4. exd5 {[%emt 0:00:00]} Qxd5 {[%emt 0:00:00]} 5. d4 {[%emt 0:00:07]} Nf6 {[%emt 0:00:08]} 6. Be3 {[%emt 0:01:45]} cxd4 {[%emt 0:00:11]} 7. cxd4 {[%emt 0:00:19]} Bb4+ {[%emt 0:00:05]} 8. Nc3 {[%emt 0:00:26]} O-O {[%emt 0:00:06]} 9. Bd3 {[%emt 0:00:53]} b6 {[%emt 0:03:54]} 10. O-O {[%emt 0:00:11]} Qd8 {[%emt 0:00:59]} 11. a3 {[%emt 0:07:58]} Be7 {[%emt 0:01:34]} 12. Qe2 {[%emt 0:07:32]} Bb7 {[%emt 0:00:27]} 13. Rfd1 {[%emt 0:02:44]} Nbd7 {[%emt 0:05:13]} 14. Bc4 {[%emt 0:13:01]} Qc7 {[%emt 0:24:56]} 15. d5 {[%emt 0:06:18]} exd5 {[%emt 0:24:10]} 16. Nxd5 {[%emt 0:00:25]} Nxd5 {[%emt 0:00:19]} 17. Bxd5 {[%emt 0:00:15]} Bxd5 {[%emt 0:00:29]} 18. Rxd5 {[%emt 0:00:07]} Nf6 {[%emt 0:00:37]} 19. Rd3 {[%emt 0:00:33]} Rfe8 {[%emt 0:01:49]} 20. Qd2 {[%emt 0:01:59]} Ne4 {[%emt 0:02:20]} 21. Qd1 {[%emt 0:11:56]} Rad8 {[%emt 0:05:39]} 22. Rc1 {[%emt 0:03:05]} Qb8 {[%emt 0:09:50]} 23. h3 {[%emt 0:04:39]} Bc5 {[%emt 0:01:43]} 24. Nd4 {[%emt 0:05:31]} Qe5 {[%emt 0:09:52]} 25. b4 {[%emt 0:09:02]} Bd6 {[%emt 0:00:55]} 26. Nf3 {[%emt 0:00:14]} Qb5 {[%emt 0:01:11]} 27. Rd5 {[%emt 0:03:27]} Qxd5 {[%emt 0:00:32]} 28. Qxd5 {[%emt 0:01:13]} Bh2+ {[%emt 0:00:06]} 29. Kxh2 {[%emt 0:00:08]} Rxd5 {[%emt 0:00:04]} 30. Rc7 {[%emt 0:00:28]} Ra8 {[%emt 0:02:07]} 31. Re7 {[%emt 0:07:19]} Nf6 {[%emt 0:00:43]} 32. Ne5 {[%emt 0:05:55]} Re8 {[%emt 0:01:50]} 33. Nc6 {[%emt 0:00:09]} Rd7 {[%emt 0:01:16]} 34. Rxd7 {[%emt 0:00:34]} Nxd7 {[%emt 0:00:04]} 35. Nxa7 Ra8 {[%emt 0:01:02]} 36. Nb5 {[%emt 0:00:26]} f6 {[%emt 0:01:35]} 37. Kg3 {[%emt 0:00:26]} Ne5 {[%emt 0:00:04]} 38. Bxb6 {[%emt 0:04:10]} Rb8 {[%emt 0:00:22]} 39. Bc5 {[%emt 0:00:58]} Rxb5 {[%emt 0:00:05]} 40. a4 {[%emt 0:00:09]} Rxc5 {[%emt 0:01:28]} 41. bxc5 {[%emt 0:30:06]} Nc6 {[%emt 0:30:03]} 42. Kf4 {[%emt 0:00:13]} Kf7 {[%emt 0:00:03]} 43. Ke4 {[%emt 0:00:13]} Ke6 {[%emt 0:00:03]} 44. g4 {[%emt 0:00:31]} g6 {[%emt 0:00:54]} 45. f3 {[%emt 0:01:03]} f5+ {[%emt 0:01:43]} 46. gxf5+ {[%emt 0:00:07]} gxf5+ {[%emt 0:00:03]} 47. Kf4 {[%emt 0:00:27]} Kf6 {[%emt 0:00:24]} 48. Ke3 {[%emt 0:00:00]} Ke5 {[%emt 0:00:00]} 49. Kd3 {[%emt 0:00:00]} Na5 {[%emt 0:00:00]} 50. Kc3 {[%emt 0:00:00]} Kd5 {[%emt 0:00:00]} 51. Kb4 {[%emt 0:00:00]} Nb7 {[%emt 0:00:00]} 52. a5 {[%emt 0:00:00]} Nxa5 {[%emt 0:00:00]} 53. Kb5 {[%emt 0:00:00]} Nc6 {[%emt 0:00:00]} 54. f4 {[%emt 0:00:00]} Nd4+ {[%emt 0:00:00]} 55. Kb4 {[%emt 0:00:00]} Ne6 {[%emt 0:00:00]} 0-1

[Event "LTU-ch Women 2020"]
[Site "Vilnius"]
[Date "2020.11.22"]
[Round "4.3"]
[White "Ravlusevic, Evelina"]
[Black "Bajoraite, Rita"]
[Result "1/2-1/2"]
[ECO "E91"]
[WhiteElo "1581"]
[BlackElo "1741"]
[Annotator "NA"]
[PlyCount "155"]
[EventDate "2020.11.20"]
[EventType "swiss"]
[EventCountry "LTU"]
[SourceTitle "playchess.com"]
[Source "ChessBase"]
[SourceQuality "1"]
[TimeControl "40/5400+30:1800+30"]

1. d4 {[%emt 0:00:00]} Nf6 {[%emt 0:02:13]} 2. Nf3 {[%emt 0:00:00]} g6 {[%emt 0:00:27]} 3. c4 {[%emt 0:00:00]} Bg7 {[%emt 0:00:41]} 4. Nc3 {[%emt 0:00:04]} d6 {[%emt 0:00:17]} 5. e4 {[%emt 0:00:14]} O-O {[%emt 0:00:29]} 6. Be2 {[%emt 0:00:19]} Bg4 {[%emt 0:02:42]} 7. Be3 {[%emt 0:04:10]} Bxf3 {[%emt 0:01:19]} 8. Bxf3 {[%emt 0:00:15]} c6 {[%emt 0:00:40]} 9. O-O {[%emt 0:00:49]} Nbd7 {[%emt 0:00:41]} 10. Be2 {[%emt 0:03:49]} e5 {[%emt 0:02:16]} 11. dxe5 {[%emt 0:07:55]} dxe5 {[%emt 0:00:54]} 12. Qb3 {[%emt 0:01:15]} Qc7 {[%emt 0:03:15]} 13. Rad1 {[%emt 0:01:03]} Rfe8 {[%emt 0:01:32]} 14. Rd2 {[%emt 0:02:25]} Bf8 {[%emt 0:02:13]} 15. Rfd1 {[%emt 0:06:33]} Nc5 {[%emt 0:05:24]} 16. Qc2 {[%emt 0:01:13]} Ne6 {[%emt 0:03:29]} 17. a3 {[%emt 0:02:12]} Bc5 {[%emt 0:04:48]} 18. Bxc5 {[%emt 0:02:13]} Nxc5 {[%emt 0:01:35]} 19. b4 {[%emt 0:00:58]} Ne6 {[%emt 0:00:33]} 20. Qa2 {[%emt 0:02:52]} Nd4 {[%emt 0:04:20]} 21. c5 {[%emt 0:00:55]} a5 {[%emt 0:01:27]} 22. Qb2 {[%emt 0:01:00]} axb4 {[%emt 0:01:34]} 23. axb4 {[%emt 0:00:11]} b6 {[%emt 0:10:28]} 24. cxb6 {[%emt 0:01:46]} Qxb6 {[%emt 0:00:20]} 25. Bc4 {[%emt 0:01:00]} Reb8 {[%emt 0:01:03]} 26. Rb1 {[%emt 0:01:52]} Ra7 {[%emt 0:03:19]} 27. Qc1 {[%emt 0:03:21]} Rba8 {[%emt 0:09:10]} 28. Rdb2 {[%emt 0:10:58]} Ra3 {[%emt 0:02:18]} 29. h3 {[%emt 0:00:53]} Ne8 {[%emt 0:08:33]} 30. b5 {[%emt 0:06:42]} Nd6 {[%emt 0:01:10]} 31. bxc6 {[%emt 0:01:07]} Qc5 {[%emt 0:06:24]} 32. Nb5 {[%emt 0:13:16]} Qxc4 {[%emt 0:04:30]} 33. Nxd6 {[%emt 0:08:37]} Qxc6 {[%emt 0:02:43]} 34. Rb8+ {[%emt 0:01:59]} Kg7 {[%emt 0:01:21]} 35. Qxc6 {[%emt 0:02:26]} Nxc6 {[%emt 0:00:15]} 36. R8b7 {[%emt 0:03:04]} Nd8 {[%emt 0:05:43]} 37. Re7 {[%emt 0:03:25]} Ra1 {[%emt 0:01:35]} 38. Rxa1 {[%emt 0:00:32]} Rxa1+ {[%emt 0:00:01]} 39. Kh2 {[%emt 0:00:09]} Kf6 {[%emt 0:02:22]} 40. Re8 {[%emt 0:01:40]} Ne6 {[%emt 0:02:10]} 41. Rb8 {[%emt 0:30:54]} Ra2 {[%emt 0:33:01]} 42. Rb7 {[%emt 0:01:12]} Nf4 {[%emt 0:00:57]} 43. Kg3 {[%emt 0:05:13]} Nh5+ {[%emt 0:00:00]} 44. Kf3 {[%emt 0:00:00]} Ra3+ {[%emt 0:00:00]} 45. Kg4 {[%emt 0:00:00]} Nf4 {[%emt 0:00:00]} 46. Ne8+ {[%emt 0:00:00]} Ke6 {[%emt 0:00:00]} 47. Kg5 {[%emt 0:00:00]} Ra2 {[%emt 0:00:00]} 48. Ng7+ {[%emt 0:00:00]} Kd6 {[%emt 0:00:00]} 49. Rxf7 {[%emt 0:00:00]} Rxf2 {[%emt 0:00:00]} 50. Ne8+ {[%emt 0:00:00]} Ke6 {[%emt 0:00:00]} 51. Rxh7 {[%emt 0:00:00]} Rxg2+ {[%emt 0:00:00]} 52. Kh6 {[%emt 0:00:00]} Nxh3 {[%emt 0:00:00]} 53. Ra7 {[%emt 0:00:00]} Nf4 {[%emt 0:00:00]} 54. Ra6+ {[%emt 0:00:00]} Ke7 {[%emt 0:00:00]} 55. Nc7 {[%emt 0:00:00]} g5 {[%emt 0:00:00]} 56. Ra5 {[%emt 0:00:00]} Kd7 {[%emt 0:00:00]} 57. Nd5 {[%emt 0:02:30]} Nxd5 {[%emt 0:00:00]} 58. Rxd5+ {[%emt 0:00:23]} Ke6 {[%emt 0:00:00]} 59. Rd8 {[%emt 0:00:35]} Rg4 {[%emt 0:00:14]} 60. Re8+ {[%emt 0:01:20]} Kd6 {[%emt 0:01:14]} 61. Kg6 {[%emt 0:00:25]} Rxe4 {[%emt 0:00:44]} 62. Kxg5 {[%emt 0:00:11]} Rf4 {[%emt 0:00:50]} 63. Rd8+ {[%emt 0:00:20]} Kc5 {[%emt 0:00:41]} 64. Rd7 {[%emt 0:01:01]} Kc4 {[%emt 0:00:24]} 65. Rd8 {[%emt 0:00:23]} Rf3 {[%emt 0:00:47]} 66. Kg4 {[%emt 0:00:12]} e4 {[%emt 0:00:18]} 67. Rc8+ {[%emt 0:00:34]} Kd3 {[%emt 0:01:19]} 68. Ra8 {[%emt 0:00:41]} Rf2 {[%emt 0:04:32]} 69. Ra3+ {[%emt 0:00:29]} Ke2 {[%emt 0:00:24]} 70. Ra2+ {[%emt 0:00:28]} Kf1 {[%emt 0:00:18]} 71. Ra1+ {[%emt 0:00:07]} Ke2 {[%emt 0:00:25]} 72. Ra2+ {[%emt 0:00:04]} Ke3 {[%emt 0:00:12]} 73. Ra3+ {[%emt 0:00:06]} Kd4 {[%emt 0:00:10]} 74. Ra4+ {[%emt 0:00:13]} Kd5 {[%emt 0:00:45]} 75. Ra5+ {[%emt 0:00:06]} Kd6 {[%emt 0:01:43]} 76. Ra6+ {[%emt 0:00:06]} Kd7 {[%emt 0:00:17]} 77. Ra7+ {[%emt 0:00:05]} Kc6 {[%emt 0:00:24]} 78. Ra6+ {[%emt 0:00:06]} 1/2-1/2

[Event "LTU-ch Women 2020"]
[Site "Vilnius"]
[Date "2020.11.22"]
[Round "4.6"]
[White "Sitkauskaite, Ieva"]
[Black "Sukyte, Kotryna"]
[Result "1-0"]
[ECO "B03"]
[WhiteElo "1367"]
[BlackElo "1405"]
[Annotator "NA"]
[PlyCount "115"]
[EventDate "2020.11.20"]
[EventType "swiss"]
[EventCountry "LTU"]
[SourceTitle "playchess.com"]
[Source "ChessBase"]
[SourceQuality "1"]
[TimeControl "40/5400+30:1800+30"]

1. e4 {[%emt 0:00:00]} Nf6 {[%emt 0:00:00]} 2. e5 {[%emt 0:00:00]} Nd5 {[%emt 0:00:00]} 3. c4 {[%emt 0:00:34]} Nb6 {[%emt 0:00:01]} 4. d4 {[%emt 0:00:38]} d6 {[%emt 0:00:18]} 5. exd6 {[%emt 0:01:34]} cxd6 {[%emt 0:00:17]} 6. b3 {[%emt 0:01:50]} g6 {[%emt 0:00:25]} 7. Bb2 {[%emt 0:00:39]} Bg7 {[%emt 0:00:16]} 8. Nf3 {[%emt 0:03:08]} O-O {[%emt 0:00:44]} 9. Be2 {[%emt 0:00:54]} Nc6 {[%emt 0:01:35]} 10. O-O {[%emt 0:02:04]} Bf5 {[%emt 0:01:09]} 11. Nc3 {[%emt 0:02:57]} e5 {[%emt 0:02:20]} 12. d5 {[%emt 0:03:07]} Ne7 {[%emt 0:00:36]} 13. Nh4 {[%emt 0:06:22]} Bd7 {[%emt 0:05:56]} 14. Ne4 {[%emt 0:05:21]} Nf5 {[%emt 0:15:46]} 15. Nf3 {[%emt 0:04:45]} Bc8 {[%emt 0:10:11]} 16. Rc1 {[%emt 0:05:49]} Nd7 {[%emt 0:09:00]} 17. a4 {[%emt 0:09:49]} Nf6 {[%emt 0:04:09]} 18. Nfd2 {[%emt 0:05:15]} Nxe4 {[%emt 0:12:43]} 19. Nxe4 {[%emt 0:00:16]} Qb6 {[%emt 0:08:39]} 20. Ba3 {[%emt 0:06:11]} Nd4 {[%emt 0:07:26]} 21. Bxd6 {[%emt 0:12:10]} Rd8 {[%emt 0:02:03]} 22. b4 {[%emt 0:12:27]} a5 {[%emt 0:12:18]} 23. Bc5 {[%emt 0:02:49]} Qc7 {[%emt 0:02:45]} 24. Bxd4 {[%emt 0:02:39]} exd4 {[%emt 0:00:12]} 25. b5 {[%emt 0:00:40]} Bf5 {[%emt 0:01:30]} 26. Nd2 {[%emt 0:02:22]} Bh6 {[%emt 0:01:28]} 27. g3 {[%emt 0:02:49]} Qc5 {[%emt 0:00:52]} 28. Nb3 {[%emt 0:01:22]} Qb4 {[%emt 0:00:37]} 29. Ra1 {[%emt 0:00:44]} Bg7 {[%emt 0:00:38]} 30. Ra2 {[%emt 0:00:54]} d3 {[%emt 0:00:27]} 31. Bxd3 {[%emt 0:00:36]} Bxd3 {[%emt 0:00:20]} 32. Qxd3 {[%emt 0:00:06]} b6 {[%emt 0:00:26]} 33. Nd4 {[%emt 0:01:43]} Bxd4 {[%emt 0:00:30]} 34. Qxd4 {[%emt 0:00:05]} Rab8 {[%emt 0:00:33]} 35. Rc1 {[%emt 0:02:26]} Rd6 {[%emt 0:00:35]} 36. Qc3 {[%emt 0:00:59]} Qc5 {[%emt 0:00:22]} 37. Qa3 {[%emt 0:00:31]} Rc8 {[%emt 0:00:24]} 38. Qxc5 {[%emt 0:00:41]} Rxc5 {[%emt 0:00:07]} 39. Rac2 {[%emt 0:00:35]} Kg7 {[%emt 0:00:36]} 40. f4 {[%emt 0:00:54]} Kf6 {[%emt 0:00:28]} 41. Kf2 {[%emt 0:30:15]} Rd8 {[%emt 0:30:42]} 42. Kf3 {[%emt 0:01:01]} Ke7 {[%emt 0:00:39]} 43. Ke4 {[%emt 0:00:40]} Kd6 {[%emt 0:00:16]} 44. Kd4 {[%emt 0:00:41]} Re8 {[%emt 0:00:28]} 45. Rf1 {[%emt 0:00:00]} Rec8 {[%emt 0:00:00]} 46. Kd3 {[%emt 0:00:00]} Re8 {[%emt 0:00:00]} 47. Rcc1 {[%emt 0:00:00]} Rc7 {[%emt 0:00:00]} 48. Rfe1 {[%emt 0:00:00]} Rce7 {[%emt 0:00:00]} 49. Rxe7 {[%emt 0:00:00]} Rxe7 {[%emt 0:00:00]} 50. Rc2 {[%emt 0:00:00]} Kc5 {[%emt 0:00:00]} 51. Re2 {[%emt 0:00:00]} Rc7 {[%emt 0:00:00]} 52. Kc3 {[%emt 0:00:00]} h5 {[%emt 0:00:00]} 53. Re8 {[%emt 0:00:00]} Kd6 {[%emt 0:00:00]} 54. Rd8+ {[%emt 0:00:00]} Kc5 {[%emt 0:00:00]} 55. Rb8 {[%emt 0:00:00]} f5 {[%emt 0:00:00]} 56. Re8 {[%emt 0:01:57]} Kd6 {[%emt 0:00:00]} 57. Re6+ {[%emt 0:00:16]} Kd7 {[%emt 0:00:00]} 58. Rxb6 {[%emt 0:00:17]} 1-0

[Event "LTU-ch Women 2020"]
[Site "Vilnius"]
[Date "2020.11.23"]
[Round "5.3"]
[White "Sulikiene, Kristina"]
[Black "Ravlusevic, Evelina"]
[Result "0-1"]
[ECO "B23"]
[WhiteElo "1892"]
[BlackElo "1581"]
[Annotator "NA"]
[PlyCount "96"]
[EventDate "2020.11.20"]
[EventType "swiss"]
[EventCountry "LTU"]
[SourceTitle "playchess.com"]
[Source "ChessBase"]
[SourceQuality "1"]
[TimeControl "40/5400+30:1800+30"]

1. e4 {[%emt 0:00:00]} c5 {[%emt 0:00:00]} 2. Nc3 {[%emt 0:00:00]} e6 {[%emt 0:00:16]} 3. g3 {[%emt 0:00:00]} Nc6 {[%emt 0:00:14]} 4. Bg2 {[%emt 0:00:36]} Nf6 {[%emt 0:02:46]} 5. d3 {[%emt 0:01:31]} d5 {[%emt 0:02:48]} 6. Bg5 {[%emt 0:01:40]} d4 {[%emt 0:00:33]} 7. Nce2 {[%emt 0:00:44]} Be7 {[%emt 0:00:48]} 8. Nf3 {[%emt 0:03:09]} e5 {[%emt 0:00:21]} 9. O-O {[%emt 0:01:34]} O-O {[%emt 0:00:20]} 10. h3 {[%emt 0:00:30]} Ne8 {[%emt 0:01:33]} 11. Bxe7 {[%emt 0:03:22]} Qxe7 {[%emt 0:00:14]} 12. Kh2 {[%emt 0:03:53]} Nd6 {[%emt 0:00:24]} 13. g4 {[%emt 0:07:18]} c4 {[%emt 0:05:15]} 14. Ng3 {[%emt 0:04:13]} g6 {[%emt 0:08:11]} 15. Qd2 {[%emt 0:06:00]} cxd3 {[%emt 0:07:34]} 16. cxd3 {[%emt 0:02:06]} a5 {[%emt 0:01:00]} 17. Qh6 {[%emt 0:04:47]} Ra6 {[%emt 0:06:28]} 18. Rg1 {[%emt 0:08:00]} Rb6 {[%emt 0:03:30]} 19. b3 {[%emt 0:06:11]} a4 {[%emt 0:03:06]} 20. Bf1 {[%emt 0:10:17]} f6 {[%emt 0:04:03]} 21. Rb1 {[%emt 0:09:56]} axb3 {[%emt 0:01:03]} 22. axb3 {[%emt 0:01:09]} Be6 {[%emt 0:00:57]} 23. Nf5 {[%emt 0:01:07]} Bxf5 {[%emt 0:07:36]} 24. gxf5 {[%emt 0:01:28]} Qg7 {[%emt 0:03:36]} 25. Qd2 {[%emt 0:02:08]} Kf7 {[%emt 0:06:49]} 26. b4 {[%emt 0:00:35]} Ke7 {[%emt 0:03:01]} 27. fxg6 {[%emt 0:02:23]} hxg6 {[%emt 0:00:35]} 28. Nh4 {[%emt 0:00:06]} g5 {[%emt 0:00:52]} 29. b5 {[%emt 0:00:06]} Qh7 {[%emt 0:06:57]} 30. Nf5+ {[%emt 0:03:38]} Nxf5 {[%emt 0:00:39]} 31. exf5 {[%emt 0:00:04]} Qxf5 {[%emt 0:07:20]} 32. Qc2 {[%emt 0:00:51]} Nb8 {[%emt 0:03:01]} 33. Qc7+ {[%emt 0:04:00]} Nd7 {[%emt 0:00:14]} 34. Rb2 {[%emt 0:05:44]} Rh8 {[%emt 0:01:15]} 35. f3 {[%emt 0:03:02]} Qxf3 {[%emt 0:05:26]} 36. Qc1 {[%emt 0:00:11]} Qf4+ {[%emt 0:00:42]} 37. Qxf4 {[%emt 0:00:06]} gxf4 {[%emt 0:00:24]} 38. Rg7+ {[%emt 0:00:15]} Ke6 {[%emt 0:00:50]} 39. Be2 {[%emt 0:01:42]} f5 {[%emt 0:01:21]} 40. Bf3 {[%emt 0:00:16]} Nf6 {[%emt 0:02:06]} 41. Rg6 {[%emt 0:09:47]} Kf7 {[%emt 0:03:58]} 42. Rbg2 {[%emt 0:02:56]} Ng4+ {[%emt 0:01:03]} 43. R6xg4 {[%emt 0:00:23]} fxg4 {[%emt 0:00:23]} 44. Bxg4 {[%emt 0:00:50]} Rxb5 {[%emt 0:00:39]} 45. Rc2 {[%emt 0:00:29]} Kf6 {[%emt 0:00:28]} 46. Kg2 {[%emt 0:00:21]} Ra8 {[%emt 0:00:22]} 47. Kf2 {[%emt 0:02:24]} Ra3 {[%emt 0:00:16]} 48. Rd2 {[%emt 0:02:30]} Rbb3 {[%emt 0:00:43]} 0-1

[Event "LTU-ch Women 2020"]
[Site "Vilnius"]
[Date "2020.11.23"]
[Round "5.4"]
[White "Maciulaityte, Barbora"]
[Black "Perminaite, Guoda"]
[Result "1-0"]
[ECO "C76"]
[WhiteElo "1696"]
[BlackElo "1757"]
[Annotator "NA"]
[PlyCount "113"]
[EventDate "2020.11.20"]
[EventType "swiss"]
[EventCountry "LTU"]
[SourceTitle "playchess.com"]
[Source "ChessBase"]
[SourceQuality "1"]
[TimeControl "40/5400+30:1800+30"]

1. e4 {[%emt 0:00:23]} e5 {[%emt 0:00:05]} 2. Nf3 {[%emt 0:00:07]} Nc6 {[%emt 0:00:26]} 3. Bb5 {[%emt 0:00:09]} a6 {[%emt 0:00:26]} 4. Ba4 {[%emt 0:00:06]} d6 {[%emt 0:00:55]} 5. c3 {[%emt 0:00:12]} Bd7 {[%emt 0:00:07]} 6. d4 {[%emt 0:00:14]} g6 {[%emt 0:00:18]} 7. O-O {[%emt 0:00:12]} Bg7 {[%emt 0:00:08]} 8. Be3 {[%emt 0:00:11]} Nge7 {[%emt 0:00:52]} 9. Nbd2 {[%emt 0:01:48]} h6 {[%emt 0:00:54]} 10. Rc1 {[%emt 0:21:07]} O-O {[%emt 0:01:35]} 11. h3 {[%emt 0:00:42]} b5 {[%emt 0:04:12]} 12. Bb3 {[%emt 0:02:11]} Kh7 {[%emt 0:00:39]} 13. Re1 {[%emt 0:08:08]} f5 {[%emt 0:02:26]} 14. dxe5 {[%emt 0:02:19]} dxe5 {[%emt 0:06:31]} 15. Bc5 {[%emt 0:07:06]} f4 {[%emt 0:02:23]} 16. Bd5 {[%emt 0:04:04]} Rb8 {[%emt 0:04:31]} 17. a4 {[%emt 0:07:14]} Rf6 {[%emt 0:03:35]} 18. axb5 {[%emt 0:03:52]} axb5 {[%emt 0:02:53]} 19. Ra1 {[%emt 0:01:52]} g5 {[%emt 0:00:58]} 20. Qc2 {[%emt 0:02:05]} Qe8 {[%emt 0:11:32]} 21. Nh2 {[%emt 0:05:17]} Qg6 {[%emt 0:03:26]} 22. Bxc6 {[%emt 0:04:24]} Nxc6 {[%emt 0:00:28]} 23. Qd3 {[%emt 0:01:33]} Qf7 {[%emt 0:06:08]} 24. Ndf3 {[%emt 0:04:46]} Rg6 {[%emt 0:07:25]} 25. Red1 {[%emt 0:01:57]} Be6 {[%emt 0:01:26]} 26. Ra6 {[%emt 0:02:20]} Qe8 {[%emt 0:01:37]} 27. Rda1 {[%emt 0:04:29]} Bc4 {[%emt 0:11:11]} 28. Qc2 {[%emt 0:01:55]} Qg8 {[%emt 0:08:52]} 29. Nd2 {[%emt 0:02:42]} Bf7 {[%emt 0:02:27]} 30. Nhf3 {[%emt 0:01:12]} Qe8 {[%emt 0:01:57]} 31. b4 {[%emt 0:03:43]} Bf6 {[%emt 0:02:55]} 32. Nh2 {[%emt 0:02:16]} h5 {[%emt 0:00:42]} 33. Kf1 {[%emt 0:01:22]} Qd7 {[%emt 0:03:49]} 34. Ra8 {[%emt 0:01:00]} Rxa8 35. Rxa8 {[%emt 0:00:05]} g4 {[%emt 0:02:10]} 36. Qd1 {[%emt 0:02:54]} Bc4+ {[%emt 0:05:58]} 37. Ke1 {[%emt 0:00:40]} gxh3 {[%emt 0:00:45]} 38. Qxh5+ {[%emt 0:01:23]} Rh6 {[%emt 0:01:00]} 39. Qf3 {[%emt 0:00:49]} hxg2 {[%emt 0:00:46]} 40. Qxg2 {[%emt 0:00:02]} Qh3 {[%emt 0:00:58]} 41. Qxh3 {[%emt 0:04:04]} Rxh3 {[%emt 0:00:07]} 42. Nxc4 {[%emt 0:00:44]} bxc4 {[%emt 0:00:46]} 43. Ng4 {[%emt 0:00:30]} Bg7 {[%emt 0:07:34]} 44. b5 {[%emt 0:01:55]} Nd4 {[%emt 0:06:47]} 45. cxd4 {[%emt 0:01:08]} exd4 {[%emt 0:00:01]} 46. e5 {[%emt 0:05:12]} d3 {[%emt 0:05:41]} 47. Kd2 {[%emt 0:04:04]} Kg6 {[%emt 0:01:01]} 48. Rg8 {[%emt 0:06:26]} Kf7 {[%emt 0:01:09]} 49. Rc8 {[%emt 0:00:32]} Rh4 {[%emt 0:02:52]} 50. Rxc7+ {[%emt 0:01:17]} Kg6 {[%emt 0:00:06]} 51. f3 {[%emt 0:03:06]} Rh5 {[%emt 0:00:44]} 52. Rc6+ {[%emt 0:01:00]} Kf5 {[%emt 0:01:01]} 53. e6 {[%emt 0:04:44]} Rh1 {[%emt 0:01:19]} 54. Bb4 {[%emt 0:01:46]} Ra1 {[%emt 0:01:23]} 55. Rxc4 {[%emt 0:00:10]} Kxe6 {[%emt 0:00:20]} 56. Kxd3 {[%emt 0:00:06]} Rd1+ {[%emt 0:06:20]} 57. Ke4 {[%emt 0:00:27]} 1-0